Workbook

Sheet Depreciation tool
B2: Market value farm depreciation calculation tool
H3: Plant depreciation allocation by usage
B4: Plant & equipment | C4: Opening market plant value | D4: Suggested market value of depreciation rate | E4: Nominated market value of depreciation rate | F4: Closing market plant value | G4: Market value of depreciation | H4: Off farm private use | I4: Off farm contracting | J4: Livestock & pasture | K4: Crop | L4: Total useage allocation
B5: Private vehicles | C5: 86000 | D5: 0.18 | E5: =D5 -> 0.18 | F5: =C5-(C5*E5) -> 70520 | G5: =C5-F5 -> 15480 | H5: 0.3 | J5: 0.7 | L5: =IF(SUM(H5:K5)=0%,"",IF(SUM(H5:K5)=100%,SUM(H5:K5),"Error")) -> 1
B6: Farm vehicles | C6: 56000 | D6: 0.18 | E6: =D6 -> 0.18 | F6: =C6-(C6*E6) -> 45920 | G6: =C6-F6 -> 10080 | I6: 0.1 | J6: 0.7 | K6: 0.2 | L6: =IF(SUM(H6:K6)=0%,"",IF(SUM(H6:K6)=100%,SUM(H6:K6),"Error")) -> 1
B7: Farming plant - motorised | C7: 45000 | D7: 0.1 | E7: 0.1 | F7: 40500 | G7: 4500 | I7: 0.2 | J7: 0.1 | K7: 0.7 | L7: 1
B8: Farming plant - implements | C8: 28000 | D8: 0.05 | E8: 0.05 | F8: 26600 | G8: 1400
B9: Cotton plant | D9: 0.05 | F9: 0 | G9: 0 | L9: =IF(SUM(H9:K9)=0%,"",IF(SUM(H9:K9)=100%,SUM(H9:K9),"Error")) -> 
B10: Other crop plant | D10: 0.05 | F10: 0 | G10: 0
B11: Irrigation plant | D11: 0.05 | F11: 0 | G11: 0
B12: Hay/Silage plant | D12: 0.05 | F12: 0 | G12: 0
B13: Sheep plant | C13: 45620 | D13: 0.02 | E13: 0.02 | F13: 44707.6 | G13: 912.4 | J13: 1 | L13: 1
B14: Cattle plant | C14: 15600 | D14: 0.02 | E14: 0.02 | F14: 15288 | G14: 312 | J14: 1 | L14: 1
B15: Other livestock plant | D15: 0.05 | F15: 0 | G15: 0 | L15: =IF(SUM(H15:K15)=0%,"",IF(SUM(H15:K15)=100%,SUM(H15:K15),"Error")) -> 
B16: Office equipment | C16: 5600 | D16: 0.25 | E16: 0.25 | F16: 4200 | G16: 1400 | J16: 1 | L16: 1
B17: Small tools | C17: 62300 | D17: 0.18 | E17: 0.18 | F17: 51086 | G17: 11214 | J17: 1 | L17: 1
B18: Total plant value | C18: =SUM(C5:C17) -> 344120 | E18: =1-F18/C18 -> 0.131635476 | F18: =SUM(F5:F17) -> 298821.6 | G18: =SUM(G5:G17) -> 45298.4
C20: Depreciation allocation | D20: % total depreciation allocation
B21: Off farm - private | C21: =SUMPRODUCT($H$5:$H$17,$G$5:$G$17) -> 4644 | D21: =C21/$C$25 -> 0.1025201773
B22: Off farm - contracting | C22: =SUMPRODUCT($I$5:$I$17,$G$5:$G$17) -> 1908 | D22: =C22/$C$25 -> 0.042120693
B23: Livestock & pasture | C23: =SUMPRODUCT($J$5:$J$17,$G$5:$G$17) -> 32180.4 | D23: 0.7104091977
B24: Crop | C24: =SUMPRODUCT($K$5:$K$17,$G$5:$G$17) -> 5166 | D24: 0.1140437631
B25: Whole farm plant | C25: =SUM(G5:G17) -> 45298.4 | D25: 1
B27: Farm management depreciation statement. This tool calculates a single year of depreciation on a range of pooled plant and equipment classes by enterprise. The calculated depreciation values are suited to management accounts only. The tool is unsuitable for taxation purposes as the rates of depreciation used are estimated market values not tax values of depreciation.
B30: Disclaimer: This decision support tool is produced by Agrista. The contents do not constitute management or business advice and should not be relied on as such. Before taking any action in relation to a matter described in this decision support tool, you should seek independent advice from a qualified professional. Agrista accepts no responsibility for any loss or damage resulting from reliance on the contents of this tool.
